Workbook

Sheet на 01.01.2026
A2: Исполнение по муниципальным программам Заволжского муниципального района на 01.01.2026
G4: план | H4: 100.00%
A5: № программы | B5: Наименование муниципальной программы | C5: НПА | D5: утверждено по состоянию на 01.01.2026 | E5: профинансировано на 01.01.2026 | F5: кассовые расходы на 01.01.2026 | G5: % исполнения | H5: отклонение от плана % (- недовыполнение, + перевыполнение)
A7: 1. | B7: Развитие образования в Заволжском муниципальном районе | C7: Постановление от 01.11.2013 №1092-п | D7: =D8+D9+D10+D11+D12 -> 353,776,097.58 | E7: =E8+E9+E10+E11+E12 -> 324,534,920.28 | F7: =F8+F9+F10+F11+F12 -> 324,534,920.28 | G7: =F7/D7*100 -> 91.73 | H7: =G7-12*100/12 -> -8.27
A8: 1.1. | B8: Предоставление дошкольного образования в Заволжском муниципальном районе | D8: 124,840,429.74 | E8: 112,352,473.44 | F8: 112,352,473.44 | G8: =F8/D8*100 -> 90.00 | H8: =G8-12*100/12 -> -10.00
A9: 1.2. | B9: Предоставление общедоступного бесплатного начального общего, основного общего, среднего общего образования по основным общеобразовательным программам в Заволжском муниципальном районе | D9: 195,597,008.66 | E9: 183,303,703.77 | F9: 183,303,703.77 | G9: 93.71 | H9: -6.29
A10: 1.3. | B10: Предоставление дополнительного образования детям в Заволжском муниципальном районе | D10: 11,304,388.88 | E10: 8,580,773.73 | F10: 8,580,773.73 | G10: 75.91 | H10: -24.09
A11: 1.4. | B11: Организация отдыха, оздоровления и занятости детей и подростков в Заволжском муниципальном районе | D11: 725,146.00 | E11: 675,389.00 | F11: 675,389.00 | G11: 93.14 | H11: -6.86
A12: 1.5. | B12: Обеспечение деятельности органа управления образованием и образовательных учреждений Заволжского муниципального района | D12: 21,309,124.30 | E12: 19,622,580.34 | F12: 19,622,580.34 | G12: 92.09 | H12: -7.91
A13: 2. | B13: Развитие физической культуры и спорта в Заволжском муниципальном районе | C13: Постановление от 05.11.2013 №1107-п | D13: 18,524,871.44 | E13: 13,305,221.72 | F13: 13,305,221.72 | G13: 71.82 | H13: -28.18
A14: 3. | B14: Развитие культуры и повышение эффективности реализации молодежной политики в Заволжском муниципальном районе | C14: Постановление от 08.11.2013 №1116-п | D14: =D15+D16+D17 -> 25,710,510.92 | E14: =E15+E16+E17 -> 25,680,130.38 | F14: =F15+F16+F17 -> 25,680,130.38 | G14: 99.88 | H14: -0.12
A15: 3.1. | B15: Предоставление дополнительного образования детям в сфере культуры и искусства в Заволжском муниципальном районе | D15: 19,903,031.51 | E15: 19,903,031.51 | F15: 19,903,031.51 | G15: 100.00 | H15: 0.00
A16: 3.2. | B16: Библиотечное дело в Заволжском муниципальном районе | D16: 5,657,479.41 | E16: 5,657,479.41 | F16: 5,657,479.41 | G16: 100.00 | H16: 0.00
A17: 3.3. | B17: Реализация молодежной политики в Заволжском муниципальном районе | D17: 150,000.00 | E17: 119,619.46 | F17: 119,619.46 | G17: 79.75 | H17: -20.25
A18: 4. | B18: Социальная поддержка граждан Заволжского муниципального района | C18: Постановление от 29.10.2013 №1066-п | D18: =D19+D20 -> 3,918,477.11 | E18: =E19+E20 -> 3,383,333.33 | F18: 3,383,333.33 | G18: 86.34 | H18: -13.66
A19: 4.1. | B19: Повышение качества жизни граждан пожилого возраста в Заволжском муниципальном районе | D19: 350,000.00 | E19: 350,000.00 | F19: 350,000.00 | G19: 100.00 | H19: 0.00
A20: 4.2. | B20: Профилактика социального сиротства, развитие семейных форм устройства детей-сирот и детей, оставшихся без попечения родителей | D20: 3,568,477.11 | E20: 3,033,333.33 | F20: 3,033,333.33 | G20: 85.00 | H20: -15.00
A21: 5. | B21: Экономическое развитие Заволжского муниципального района | C21: Постановление от 14.10.2013 №1021-п | D21: =D22+D23 -> 573,919.00 | E21: =E22+E23 -> 573,919.00 | F21: 573,919.00 | G21: 100.00 | H21: 0.00
A22: 5.1. | B22: Развитие субъектов малого и среднего предпринимательства в Заволжском муниципальном районе | D22: 573,919.00 | E22: 573,919.00 | F22: 573,919.00 | G22: 100.00 | H22: 0.00
A23: 5.2. | B23: Развитие сельскохозяйственного производства в Заволжском муниципальном районе | D23: 0.00 | E23: 0.00 | F23: 0.00
A24: 6. | B24: Обеспечение доступным и комфортным жильем населения Заволжского муниципального района | C24: Постановление от 05.11.2013 №1066-п | D24: =D25+D26 -> 49,255,249.17 | E24: =E25+E26 -> 39,640,826.35 | F24: =F25+F26 -> 39,640,826.35 | G24: 80.48 | H24: -19.52
A25: 6.1. | B25: Развитие газификации Заволжского муниципального района | D25: 49,255,249.17 | E25: 39,640,826.35 | F25: 39,640,826.35 | G25: 80.48 | H25: -19.52
A26: 6.2. | B26: Стимулирование развития жилищного строительства | D26: 0.00 | E26: 0.00 | F26: 0.00
A27: 7. | B27: Обеспечение услугами жилищно–коммунального хозяйства населения Заволжского муниципального района | D27: =D28 -> 8,230,097.85 | E27: =E28 -> 7,513,529.04 | F27: 7,513,529.04 | G27: 91.29 | H27: -8.71
A28: 7.1. | B28: Предупреждение аварийных ситуаций на объектах ЖКХ, расположенных на территории сельских поселений Заволжского муниципального района и развитие коммунальной инфраструктуры | D28: 8,230,097.85 | E28: 7,513,529.04 | F28: 7,513,529.04 | G28: 91.29 | H28: -8.71
A29: 8. | B29: Энергосбережение и повышение энергетической эффективности Заволжского муниципального района | D29: =D30+D31 -> 27,000.00 | E29: =E30+E31 -> 0.00 | F29: 0.00 | G29: 0.00 | H29: -100.00
A30: 8.1. | B30: Повышение энергетической эффективности деятельности муниципальных учреждений | D30: 27,000.00 | E30: 0.00 | F30: 0.00 | G30: 0.00 | H30: -100.00
A31: 8.2. | B31: Повышение энергетической эффективности в жилищном фонде | D31: 0.00 | E31: 0.00 | F31: 0.00
A32: 9. | B32: Развитие транспортной системы Заволжского муниципального района | C32: Постановление от 29.10.2013 №1068-п | D32: 113,098,901.02 | E32: 108,556,454.05 | F32: 108,556,454.05 | G32: 95.98 | H32: -4.02
A33: 10. | B33: Безопасность Заволжского муниципального района Ивановской области | C33: Постановление от 14.10.2013 №1020-п | D33: =D34+D35+D36 -> 3,578,969.16 | E33: =E34+E35+E36 -> 3,451,989.73 | F33: =F34+F35+F36 -> 3,451,989.73 | G33: 96.45 | H33: -3.55
A34: 10.1. | B34: Обеспечение общественного порядка и профилактика правонарушений | D34: 1,597,826.16 | E34: 1,548,866.73 | F34: 1,548,866.73 | G34: 96.94 | H34: -3.06
A35: 10.2. | B35: Построение и развитие АПК «Безопасный город» | D35: 0.00 | E35: 0.00 | F35: 0.00
A36: 10.4. | B36: Пожарная безопасность | D36: 1,981,143.00 | E36: 1,903,123.00 | F36: 1,903,123.00 | G36: 96.06 | H36: -3.94
A37: 11. | B37: Управление муниципальными финансами в Заволжском муниципальном районе | D37: =D38+D39 -> 9,111,175.00 | E37: =E38+E39 -> 8,777,316.60 | F37: 8,777,316.60 | G37: 96.34 | H37: -3.66
A38: 11.1. | B38: Организация бюджетного процесса в Заволжском муниципальном районе | D38: 9,111,175.00 | E38: 8,777,316.60 | F38: 8,777,316.60 | G38: 96.34 | H38: -3.66
A39: 11.2. | B39: Управление муниципальным долгом Заволжского муниципального района | D39: 0.00 | E39: 0.00 | F39: 0.00
A40: 12. | B40: Совершенствование местного самоуправления Заволжского муниципального района | C40: постановление от 27.10.2014 №868-п | D40: =D41+D42+D43 -> 82,046,243.01 | E40: =E41+E42+E43 -> 79,610,320.74 | F40: =F41+F42+F43 -> 79,610,320.74 | G40: 97.03 | H40: -2.97
A41: 12.1 | B41: Обеспечение деятельности администрации Заволжского муниципального района | D41: 56,101,903.79 | E41: 54,632,292.53 | F41: 54,632,292.53 | G41: 97.38 | H41: -2.62
A42: 12.2 | B42: Обеспечение деятельности муниципального казенного учреждения «Управление по материально-техническому обеспечению деятельности органов местного самоуправления Заволжского муниципального района» | D42: 19,189,564.22 | E42: 18,223,253.21 | F42: 18,223,253.21 | G42: 94.96 | H42: -5.04
A43: 12.3. | B43: Организация предоставления государственных и муниципальных услуг на базе муниципального учреждения «Многофункциональный центр предоставления государственных и муниципальных услуг Заволжского муниципального района | D43: 6,754,775.00 | E43: 6,754,775.00 | F43: 6,754,775.00 | G43: 100.00 | H43: 0.00
A44: 13. | B44: Управление муниципальным имуществом Заволжского муниципального района Ивановской области | C44: постановление от 27.10.2014 №868-п | D44: 2,689,489.57 | E44: 2,474,944.27 | F44: 2,474,944.27 | G44: 92.02 | H44: -7.98
A45: 14. | B45: Улучшение условий и охраны труда в органах местного самоуправления Заволжского муниципального района | D45: =D46+D47 -> 105,141.00 | E45: =E46+E47 -> 14,411.00 | F45: 14,411.00 | G45: 13.71 | H45: -86.29
A46: 14.1. | B46: Специальная оценка условий труда в органах местного самоуправления Заволжского муниципального района | D46: 52,841.00 | E46: 7,811.00 | F46: 7,811.00 | G46: 14.78 | H46: -85.22
A47: 14.2. | B47: Совершенствование системы непрерывной подготовки работников по охране труда на основе современных технологий обучения | D47: 52,300.00 | E47: 6,600.00 | F47: 6,600.00 | G47: 12.62 | H47: -87.38
A48: 15. | B48: Поддержка и развитие информационно-коммуникационных технологий в органах местного самоуправления Заволжского муниципального района | D48: 1,695,073.00 | E48: 1,551,907.00 | F48: 1,551,907.00 | G48: 91.55 | H48: -8.45
A49: 16. | B49: Охрана окружающей среды на территории Заволжского муниципального района | D49: 5,415,879.12 | E49: 0.00 | F49: 0.00 | G49: 0.00 | H49: -100.00
B50: ИТОГО | D50: =D7+D13+D14+D18+D21+D24+D27+D29+D32+D33+D37+D40+D44+D45+D48+D49 -> 677,757,093.95 | E50: =E7+E13+E14+E18+E21+E24+E27+E29+E32+E33+E37+E40+E44+E45+E48+E49 -> 619,069,223.49 | F50: =F7+F13+F14+F18+F21+F24+F27+F29+F32+F33+F37+F40+F44+F45+F48+F49 -> 619,069,223.49 | G50: =F50/D50*100 -> 91.34 | H50: -8.66
B53: Начальник финансового отдела | G53: Н.В.Смирнова
